fUSD/lending_fUSD_20240114
["ID","MTS","AMOUNT","RATE_DAILY","PERIOD"]
[311546266,1705211458648,-714.13,0.00030136,2]
[311546267,1705211458658,-526.96391202,0.00030136,2]
[311546268,1705211458667,-714.13,0.00030136,2]
[311546269,1705211458676,-714.13,0.00030136,2]
[311546270,1705211458685,-714.13,0.00030136,2]
[311546271,1705211458694,-514.30420494,0.00030136,2]
[311546272,1705211458703,-528.04075653,0.00030136,2]
[311546273,1705211458714,-714.13,0.00030136,2]
[311546274,1705211458723,-714.13,0.00030136,2]
[311546275,1705211458732,-521.46839465,0.00030136,2]
[311546276,1705211458741,-714.13,0.00030136,2]
[311546277,1705211458751,-714.13,0.00030136,2]
[311546278,1705211458760,-714.13,0.00030136,2]
[311546279,1705211458769,-500.0,0.00030136,2]
[311546280,1705211458778,-714.13,0.00030136,2]
[311546281,1705211458787,-547.61385793,0.00030136,2]
[311546282,1705211458796,-500.0,0.00030136,2]
[311546283,1705211458806,-510.15648782,0.00030136,2]
[311546284,1705211458815,-714.13,0.00030136,2]
[311546285,1705211458825,-714.13,0.00030136,2]
[311546286,1705211458834,-714.13,0.00030136,2]
[311546287,1705211458843,-714.13,0.00030136,2]
[311546288,1705211458853,-714.13,0.00030136,2]
[311546289,1705211458863,-714.13,0.00030136,2]
[311546290,1705211458872,-714.13,0.00030136,2]
[311546291,1705211458881,-714.13,0.00030136,2]
[311546292,1705211458891,-714.13,0.00030136,2]
[311546293,1705211458901,-714.13,0.00030136,2]
[311546294,1705211458910,-714.13,0.00030136,2]
[311546295,1705211458921,-714.13,0.00030136,2]
[311546296,1705211458930,-714.28258811,0.00030136,2]
[311546297,1705211458940,-500.0,0.00030136,2]
[311546298,1705211458948,-573.24533304,0.00030136,2]
[311546299,1705211458960,-511.67578181,0.00030136,2]
[311546300,1705211458970,-500.0,0.00030136,2]
[311546301,1705211458980,-510.85206833,0.00030136,2]
[311546302,1705211458990,-500.0,0.00030136,2]
[311546303,1705211459000,-562.6346188,0.00030136,2]
[311546304,1705211459009,-500.0,0.00030136,2]
[311546305,1705211459019,-500.0,0.00030136,2]
[311546306,1705211459030,-500.0,0.00030136,2]
[311546307,1705211459041,-262.9986368,0.00030136,2]
[311546308,1705211459051,-524.32196331,0.00030136,2]
[311546309,1705211459061,-532.05143021,0.00030136,2]
[311546310,1705211459070,-500.0,0.00030136,2]
[311546311,1705211459080,-513.62373015,0.00030136,2]
[311546312,1705211459090,-501.52316312,0.00030136,2]
[311546313,1705211459100,-625.2372627,0.00030136,2]
[311546314,1705211459109,-601.09616096,0.00030136,2]
[311546315,1705211459119,-531.42919183,0.00030136,2]
[311546316,1705211459128,-544.4596509,0.00030136,2]
[311546317,1705211459137,-500.0,0.00030136,2]
[311546318,1705211459146,-565.00533613,0.00030136,2]
[311546319,1705211459155,-354.16393556,0.00030136,2]
[311546320,1705211459167,-519.57995602,0.00030136,2]
[311546321,1705211459176,-515.59620089,0.00030136,2]
[311546322,1705211459187,-520.76177933,0.00030136,2]
[311546323,1705211459196,-500.0,0.00030136,2]
[311546324,1705211459206,-551.26737223,0.00030136,2]
[311546325,1705211459217,-500.0,0.00030136,2]
[311546326,1705211459227,-220.47586057,0.00030136,2]
[311546327,1705211459237,-540.69477205,0.00030136,2]
[311546328,1705211459248,-471.25224726,0.00030136,2]
[311546329,1705211459258,-511.83798992,0.00030136,2]
[311546330,1705211459268,-516.70646673,0.00030136,2]
[311546331,1705211459278,-509.69269628,0.00030136,2]
[311546332,1705211459287,-541.79133198,0.00030136,2]
[311546333,1705211459296,-500.0,0.00030136,2]
[311546334,1705211459306,-502.21848773,0.00030136,2]
[311546335,1705211459315,-500.0,0.00030136,2]
[311546336,1705211459324,-517.48391738,0.00030136,2]
[311546337,1705211459334,-526.77807954,0.00030136,2]
[311546338,1705211459343,-511.41780208,0.00030136,2]
[311546339,1705211459352,-500.0,0.00030136,2]
[311546340,1705211459361,-558.67803917,0.00030136,2]
[311546341,1705211459371,-523.84883576,0.00030136,2]
[311546342,1705211459380,-500.0,0.00030136,2]
[311546343,1705211459389,-509.89604129,0.00030136,2]
[311546344,1705211459399,-517.90074925,0.00030136,2]
[311546345,1705211459407,-514.30047785,0.00030136,2]
[311546346,1705211459415,-523.22202271,0.00030136,2]
[311546347,1705211459423,-500.0,0.00030136,2]
[311546348,1705211459431,-500.0,0.00030136,2]
[311546349,1705211459439,-559.38176524,0.00030136,2]
[311546350,1705211459448,-500.0,0.00030136,2]
[311546351,1705211459456,-646.75957206,0.00030136,2]
[311546352,1705211459464,-500.0,0.00030136,2]
[311546353,1705211459473,-543.08694716,0.00030136,2]
[311546354,1705211459481,-378.09401902,0.00030136,2]
[311546355,1705211459489,-500.0,0.00030136,2]
[311546356,1705211459498,-500.0,0.00030136,2]
[311546357,1705211459506,-521.9849301,0.00030136,2]
[311546358,1705211459514,-527.09556812,0.00030136,2]
[311546359,1705211459523,-503.69251738,0.00030136,2]
[311546360,1705211459573,-512.24085106,0.00030136,2]
[311546361,1705211459582,-500.0,0.00030136,2]
[311546362,1705211459591,-527.05187723,0.00030136,2]
[311546363,1705211459599,-500.0,0.00030136,2]
[311546364,1705211459609,-526.18599925,0.00030136,2]
[311546365,1705211459618,-617.16187943,0.00030136,2]
[311546366,1705211459628,-514.67486885,0.00030136,2]
[311546367,1705211459637,-500.0,0.00030136,2]
[311546368,1705211459646,-519.96563177,0.00030136,2]
[311546369,1705211459655,-507.18703347,0.00030136,2]
[311546370,1705211459665,-500.0,0.00030136,2]
[311546371,1705211459674,-500.0,0.00030136,2]
[311546372,1705211459683,-500.0,0.00030136,2]
[311546373,1705211459693,-500.0,0.00030136,2]
[311546374,1705211459702,-500.0,0.00030136,2]
[311546375,1705211459711,-296.4495224,0.00030136,2]
[311546376,1705211459722,-500.0,0.00030136,2]
[311546377,1705211459730,-500.0,0.00030136,2]
[311546378,1705211459740,-500.0,0.00030136,2]
[311546379,1705211459750,-500.0,0.00030136,2]
[311546380,1705211459759,-500.0,0.00030136,2]
[311546381,1705211459768,-500.0,0.00030136,2]
[311546382,1705211459778,-500.0,0.00030136,2]
[311546383,1705211459787,-500.0,0.00030136,2]
[311546384,1705211459796,-500.0,0.00030136,2]
[311546385,1705211459805,-502.18687915,0.00030136,2]
[311546386,1705211459814,-493.97654577,0.00030136,2]
[311546387,1705211459824,-500.0,0.00030136,2]
[311546388,1705211459834,-500.0,0.00030136,2]
[311546389,1705211459844,-500.0,0.00030136,2]
[311546390,1705211459853,-500.0,0.00030136,2]
[311546391,1705211459862,-500.0,0.00030136,2]
[311546392,1705211459871,-500.0,0.00030136,2]
[311546393,1705211459879,-500.0,0.00030136,2]
[311546394,1705211459889,-535.98521421,0.00030136,2]
[311546395,1705211459898,-608.73603958,0.00030136,2]
[311546396,1705211459908,-523.06804387,0.00030136,2]
[311546397,1705211459917,-500.0,0.00030136,2]
[311546398,1705211459926,-500.0,0.00030136,2]
[311546399,1705211459935,-500.0,0.00030136,2]
[311546400,1705211459947,-471.71895183,0.00030136,2]
[311546401,1705211459956,-502.12722447,0.00030136,2]
[311546402,1705211459965,-473.63293569,0.00030136,2]
[311546403,1705211459974,-500.0,0.00030136,2]
[311546404,1705211459984,-500.0,0.00030136,2]
[311546405,1705211459994,-500.0,0.00030136,2]
[311546406,1705211460003,-500.0,0.00030136,2]
[311546407,1705211460013,-500.0,0.00030136,2]
[311546408,1705211460023,-500.0,0.00030136,2]
[311546409,1705211460033,-500.0,0.00030136,2]
[311546410,1705211460042,-503.33,0.00030136,2]
[311546411,1705211460051,-500.0,0.00030136,2]
[311546412,1705211460060,-500.0,0.00030136,2]
[311546413,1705211460070,-500.0,0.00030136,2]
[311546414,1705211460079,-500.0,0.00030136,2]
[311546415,1705211460088,-560.3009223,0.00030136,2]
[311546416,1705211460097,-500.0,0.00030136,2]
[311546417,1705211460106,-507.51304552,0.00030136,2]
[311546418,1705211460115,-566.90093739,0.00030136,2]
[311546419,1705211460124,-500.0,0.00030136,2]
[311546420,1705211460133,-500.0,0.00030136,2]
[311546421,1705211460142,-500.0,0.00030136,2]
[311546422,1705211460150,-400.00920435,0.00030136,2]
[311546423,1705211460159,-472.19317297,0.00030136,2]
[311546424,1705211460169,-500.0,0.00030136,2]
[311546425,1705211460177,-500.0,0.00030136,2]
[311546426,1705211460187,-625.1986461,0.00030136,2]
[311546427,1705211460196,-500.0,0.00030136,2]
[311546428,1705211460205,-517.24856748,0.00030136,2]
[311546429,1705211460214,-500.0,0.00030136,2]
[311546430,1705211460224,-500.0,0.00030136,2]
[311546431,1705211460233,-523.46700289,0.00030136,2]
[311546432,1705211460243,-500.0,0.00030136,2]
[311546433,1705211460253,-500.0,0.00030136,2]
[311546434,1705211460263,-500.0,0.00030136,2]
[311546435,1705211460272,-151.6823969,0.00030136,2]
[311546436,1705211460285,-508.32961381,0.00030136,2]
[311546437,1705211460294,-500.0,0.00030136,2]
[311546438,1705211460302,-500.0,0.00030136,2]
[311546439,1705211460311,-552.89019408,0.00030136,2]
[311546440,1705211460321,-500.07474282,0.00030136,2]
[311546441,1705211460331,-625.05941762,0.00030136,2]
[311546442,1705211460340,-460.13763604,0.00030136,2]
[311546443,1705211460350,-508.61015805,0.00030136,2]
[311546444,1705211460359,-500.0,0.00030136,2]
[311546445,1705211460368,-502.76674958,0.00030136,2]
[311546446,1705211460378,-212.72872234,0.00030136,2]
[311546447,1705211460387,-500.0,0.00030136,2]
[311546448,1705211460398,-500.0,0.00030136,2]
[311546449,1705211460407,-151.20402761,0.00030136,2]
[311546450,1705211460417,-500.0,0.00030136,2]
[311546451,1705211460426,-640.90017823,0.00030136,2]
[311546452,1705211460435,-526.27186447,0.00030136,2]
[311546453,1705211460445,-506.53219353,0.00030136,2]
[311546454,1705211460454,-232.0439767,0.00030136,2]
[311546455,1705211460463,-585.87084741,0.00030136,2]
[311546456,1705211460474,-510.54133575,0.00030136,2]
[311546457,1705211460483,-500.0,0.00030136,2]
[311546458,1705211460492,-500.0,0.00030136,2]
[311546459,1705211460501,-500.0,0.00030136,2]
[311546460,1705211460510,-500.0,0.00030136,2]
[311546461,1705211460520,-157.55953576,0.00030136,2]
[311546462,1705211460529,-500.0,0.00030136,2]
[311546463,1705211460538,-189.25291634,0.00030136,2]
[311546464,1705211460547,-283.54446675,0.00030136,2]
[311546465,1705211460557,-514.9455867,0.00030136,2]
[311546466,1705211460566,-528.68244276,0.00030136,2]
[311546467,1705211460575,-536.21117752,0.00030136,2]
[311546468,1705211460586,-500.0,0.00030136,2]
[311546469,1705211460596,-643.62399359,0.00030136,2]
[311546470,1705211460607,-500.0,0.00030136,2]
[311546471,1705211460616,-215.16642854,0.00030136,2]
[311546472,1705211460626,-500.0,0.00030136,2]
[311546473,1705211460636,-500.0,0.00030136,2]
[311546474,1705211460646,-628.28,0.00030136,2]
[311546475,1705211460656,-504.80171407,0.00030136,2]
[311546476,1705211460666,-628.28,0.00030136,2]
[311546477,1705211460675,-500.0,0.00030136,2]
[311546478,1705211460686,-628.28,0.00030136,2]
[311546479,1705211460697,-1008.55,0.00030136,2]
[311546480,1705211460706,-500.0,0.00030136,2]
[311546481,1705211460715,-628.28,0.00030136,2]
[311546482,1705211460724,-500.0,0.00030136,2]
[311546483,1705211460736,-1008.55,0.00030136,2]
[311546484,1705211460745,-500.0,0.00030136,2]
[311546485,1705211460754,-628.28,0.00030136,2]
[311546486,1705211460763,-500.0,0.00030136,2]
[311546487,1705211460772,-1008.55,0.00030136,2]
[311546488,1705211460781,-500.0,0.00030136,2]
[311546489,1705211460791,-500.0,0.00030136,2]
[311546490,1705211460799,-628.28,0.00030136,2]
[311546491,1705211460809,-1008.55,0.00030136,2]
[311546492,1705211460818,-540.66931281,0.00030136,2]
[311546493,1705211460827,-589.35083769,0.00030136,2]
[311546494,1705211460836,-1008.55,0.00030136,2]
[311546495,1705211460845,-500.0,0.00030136,2]
[311546496,1705211460854,-500.0,0.00030136,2]
[311546497,1705211460864,-628.28,0.00030136,2]
[311546498,1705211460873,-1008.55,0.00030136,2]
[311546499,1705211460882,-500.0,0.00030136,2]
[311546500,1705211460891,-1008.55,0.00030136,2]
[311546501,1705211460901,-628.28,0.00030136,2]
[311546502,1705211460912,-500.0,0.00030136,2]
[311546503,1705211460923,-1008.55,0.00030136,2]
[311546504,1705211460933,-628.28,0.00030136,2]
[311546505,1705211460943,-1008.55,0.00030136,2]
[311546506,1705211460953,-628.28,0.00030136,2]
[311546507,1705211460963,-515.51891923,0.00030136,2]
[311546508,1705211460973,-500.0,0.00030136,2]
[311546509,1705211460982,-628.28,0.00030136,2]
[311546510,1705211460992,-500.0,0.00030136,2]
[311546511,1705211461001,-1008.55,0.00030136,2]
[311546512,1705211461010,-1008.55,0.00030136,2]
[311546513,1705211461020,-628.28,0.00030136,2]
[311546514,1705211461028,-1008.55,0.00030136,2]
[311546515,1705211461037,-500.0,0.00030136,2]
[311546516,1705211461046,-205.92861607,0.00030136,2]
[311546517,1705211461055,-525.65392299,0.00030136,2]
[311546518,1705211461064,-1008.55,0.00030136,2]
[311546519,1705211461073,-628.28,0.00030136,2]
[311546520,1705211461082,-1008.55,0.00030136,2]
[311546521,1705211461091,-544.72879779,0.00030136,2]
[311546522,1705211461100,-628.28,0.00030136,2]
[311546523,1705211461109,-1008.55,0.00030136,2]
[311546524,1705211461119,-628.28,0.00030136,2]
[311546525,1705211461128,-1008.55,0.00030136,2]
[311546526,1705211461138,-628.28,0.00030136,2]
[311546527,1705211461147,-1008.55,0.00030136,2]
[311546528,1705211461157,-506.40082267,0.00030136,2]
[311546529,1705211461169,-628.28,0.00030136,2]
[311546530,1705211461179,-1008.55,0.00030136,2]
[311546531,1705211461190,-628.28,0.00030136,2]
[311546532,1705211461200,-1008.55,0.00030136,2]
[311546533,1705211461209,-628.28,0.00030136,2]
[311546534,1705211461219,-1008.55,0.00030136,2]
[311546535,1705211461229,-628.28,0.00030136,2]
[311546536,1705211461240,-1008.55,0.00030136,2]
[311546537,1705211461249,-500.0,0.00030136,2]
[311546538,1705211461258,-500.0,0.00030136,2]
[311546539,1705211461268,-628.28,0.00030136,2]
[311546540,1705211461278,-1008.55,0.00030136,2]
[311546541,1705211461287,-628.28,0.00030136,2]
[311546542,1705211461296,-500.0,0.00030136,2]
[311546543,1705211461305,-500.0,0.00030136,2]
[311546544,1705211461315,-628.28,0.00030136,2]
[311546545,1705211461324,-542.31986026,0.00030136,2]
[311546546,1705211461335,-523.34045946,0.00030136,2]
[311546547,1705211461344,-1008.55,0.00030136,2]
[311546548,1705211461353,-302.2230311,0.00030136,2]
[311546549,1705211461363,-628.51865087,0.00030136,2]
[311546550,1705211461372,-1008.69109682,0.00030136,2]
[311546551,1705211461382,-613.81366474,0.00030136,2]
[311546552,1705211461391,-500.0,0.00030136,2]
[311546553,1705211461401,-559.72927584,0.00030136,2]
[311546554,1705211461410,-525.8893714,0.00030136,2]
[311546555,1705211461419,-500.0,0.00030136,2]
[311546556,1705211461428,-185.81155587,0.00030136,2]
[311546557,1705211461438,-412.11917082,0.00030136,2]
[311546558,1705211461447,-519.10619072,0.00030136,2]
[311546559,1705211461458,-513.14024544,0.00030136,2]
[311546560,1705211461467,-519.22928986,0.00030136,2]
[311546561,1705211461476,-517.51824809,0.00030136,2]
[311546562,1705211461485,-500.0,0.00030136,2]
[311546563,1705211461493,-500.0,0.00030136,2]
[311546564,1705211461503,-188.12310496,0.00030136,2]
[311546565,1705211461512,-500.0,0.00030136,2]
[311546566,1705211461522,-510.50997551,0.00030136,2]
[311546567,1705211461531,-500.0,0.00030136,2]
[311546568,1705211461540,-529.61681786,0.00030136,2]
[311546569,1705211461550,-500.0,0.00030136,2]
[311546570,1705211461559,-500.0,0.00030136,2]
[311546571,1705211461568,-500.0,0.00030136,2]
[311546572,1705211461578,-500.0,0.00030136,2]
[311546573,1705211461587,-528.83768231,0.00030136,2]
[311546574,1705211461596,-165.79317393,0.00030136,2]
[311546575,1705211461605,-500.0,0.00030136,2]
[311546576,1705211461614,-500.0,0.00030136,2]
[311546577,1705211461624,-411.78457201,0.00030136,2]
[311546578,1705211461633,-160.76663689,0.00030136,2]
[311546579,1705211461644,-500.0,0.00030136,2]
[311546580,1705211461654,-224.47360247,0.00030136,2]
[311546581,1705211461663,-500.0,0.00030136,2]
[311546582,1705211461672,-500.0,0.00030136,2]
[311546583,1705211461681,-500.0,0.00030136,2]
[311546584,1705211461691,-159.6508086,0.00030136,2]
[311546585,1705211461700,-529.51731914,0.00030136,2]
[311546586,1705211461709,-524.26042374,0.00030136,2]
[311546587,1705211461719,-500.0,0.00030136,2]
[311546588,1705211461728,-627.20455965,0.00030136,2]
[311546589,1705211461737,-573.56123851,0.00030136,2]
[311546590,1705211461746,-502.04180602,0.00030136,2]
[311546591,1705211461755,-548.45679989,0.00030136,2]
[311546592,1705211461764,-607.43,0.00030136,2]
[311546593,1705211461774,-607.43,0.00030136,2]
[311546594,1705211461783,-607.43,0.00030136,2]
[311546595,1705211461792,-508.85256528,0.00030136,2]
[311546596,1705211461802,-607.43,0.00030136,2]
[311546597,1705211461811,-607.43,0.00030136,2]
[311546598,1705211461821,-607.43,0.00030136,2]
[311546599,1705211461831,-607.43,0.00030136,2]
[311546600,1705211461841,-607.43,0.00030136,2]
[311546601,1705211461851,-500.0,0.00030136,2]
[311546602,1705211461860,-500.0,0.00030136,2]
[311546603,1705211461869,-607.43,0.00030136,2]
[311546604,1705211461878,-574.79126059,0.00030136,2]
[311546605,1705211461887,-525.79633962,0.00030136,2]
[311546606,1705211461897,-607.43,0.00030136,2]
[311546607,1705211461906,-607.43,0.00030136,2]
[311546608,1705211461915,-544.32773014,0.00030136,2]
[311546609,1705211461925,-500.0,0.00030136,2]
[311546610,1705211461934,-550.84759259,0.00030136,2]
[311546611,1705211461944,-607.43,0.00030136,2]
[311546612,1705211461954,-166.61837888,0.00030136,2]
[311546613,1705211461965,-638.62326456,0.00030136,2]
[311546614,1705211461974,-607.43,0.00030136,2]
[311546615,1705211461983,-607.43,0.00030136,2]
[311546616,1705211461992,-607.43,0.00030136,2]
[311546617,1705211462001,-500.0,0.00030136,2]
[311546618,1705211462010,-607.43,0.00030136,2]
[311546619,1705211462019,-607.43,0.00030136,2]
[311546620,1705211462028,-500.0,0.00030136,2]
[311546621,1705211462039,-607.43,0.00030136,2]
[311546622,1705211462048,-504.8978544,0.00030136,2]
[311546623,1705211462057,-607.43,0.00030136,2]
[311546624,1705211462066,-500.0,0.00030136,2]
[311546625,1705211462075,-607.43,0.00030136,2]
[311546626,1705211462084,-500.0,0.00030136,2]
[311546627,1705211462093,-500.0,0.00030136,2]
[311546628,1705211462103,-607.43,0.00030136,2]
[311546629,1705211462112,-519.28703827,0.00030136,2]
[311546630,1705211462121,-500.0,0.00030136,2]
[311546631,1705211462130,-607.43,0.00030136,2]
[311546632,1705211462139,-500.0,0.00030136,2]
[311546633,1705211462148,-607.43,0.00030136,2]
[311546634,1705211462157,-500.0,0.00030136,2]
[311546635,1705211462166,-607.59797352,0.00030136,2]
[311546636,1705211462175,-500.0,0.00030136,2]
[311546637,1705211462184,-500.0,0.00030136,2]
[311546638,1705211462194,-500.0,0.00030136,2]
[311546639,1705211462203,-250.4118354,0.00030136,2]
[311546640,1705211462212,-500.0,0.00030136,2]
[311546641,1705211462222,-236.54614852,0.00030136,2]
[311546642,1705211462231,-334.91528227,0.00030136,2]
[311546643,1705211462241,-458.71211941,0.00030136,2]
[311546644,1705211462250,-510.3934984,0.00030136,2]
[311546645,1705211462260,-573.00161697,0.00030136,2]
[311546646,1705211462269,-500.0,0.00030136,2]
[311546647,1705211462279,-583.99203906,0.00030136,2]
[311546648,1705211462288,-500.0,0.00030136,2]
[311546649,1705211462297,-156.89661447,0.00030136,2]
[311546650,1705211462307,-500.0,0.00030136,2]
[311546651,1705211462316,-526.38593421,0.00030136,2]
[311546652,1705211462326,-500.0,0.00030136,2]
[311546653,1705211462335,-505.11243648,0.00030136,2]
[311546654,1705211462345,-364.73227438,0.00030136,2]
[311546655,1705211462354,-500.0,0.00030136,2]
[311546656,1705211462364,-500.0,0.00030136,2]
[311546657,1705211462373,-502.48677005,0.00030136,2]
[311546658,1705211462382,-500.0,0.00030136,2]
[311546659,1705211462391,-500.0,0.00030136,2]
[311546660,1705211462400,-332.1185246,0.00030136,2]
[311546661,1705211462409,-523.45726624,0.00030136,2]
[311546662,1705211462418,-500.0,0.00030136,2]
[311546663,1705211462427,-500.0,0.00030136,2]
[311546664,1705211462436,-409.47281769,0.00030136,2]
[311546665,1705211462445,-502.69222231,0.00030136,2]
[311546666,1705211462455,-500.0,0.00030136,2]
[311546667,1705211462464,-500.0,0.00030136,2]
[311546668,1705211462473,-500.0,0.00030136,2]
[311546669,1705211462483,-500.0,0.00030136,2]
[311546670,1705211462492,-500.0,0.00030136,2]
[311546671,1705211462502,-510.3192674,0.00030136,2]
[311546672,1705211462510,-500.0,0.00030136,2]
[311546673,1705211462519,-428.86152621,0.00030136,2]
[311546674,1705211462528,-523.90107185,0.00030136,2]
[311546675,1705211462537,-500.0,0.00030136,2]
[311546676,1705211462547,-500.0,0.00030136,2]
[311546677,1705211462557,-500.0,0.00030136,2]
[311546678,1705211462567,-500.0,0.00030136,2]
[311546679,1705211462576,-500.0,0.00030136,2]
[311546680,1705211462586,-500.0,0.00030136,2]
[311546681,1705211462595,-493.92522238,0.00030136,2]
[311546682,1705211462604,-618.12511233,0.00030136,2]
[311546683,1705211462614,-500.0,0.00030136,2]
[311546684,1705211462623,-500.0,0.00030136,2]
[311546685,1705211462633,-553.22268575,0.00030136,2]
[311546686,1705211462643,-500.0,0.00030136,2]
[311546687,1705211462653,-500.0,0.00030136,2]
[311546688,1705211462664,-500.0,0.00030136,2]
[311546689,1705211462674,-500.0,0.00030136,2]
[311546690,1705211462684,-481.0758801,0.00030136,2]
[311546691,1705211462694,-517.92155335,0.00030136,2]
[311546692,1705211462703,-444.48353615,0.00030136,2]
[311546693,1705211462714,-500.0,0.00030136,2]
[311546694,1705211462725,-500.0,0.00030136,2]
[311546695,1705211462736,-500.0,0.00030136,2]
[311546696,1705211462745,-500.0,0.00030136,2]
[311546697,1705211462755,-500.0,0.00030136,2]
[311546698,1705211462767,-500.0,0.00030136,2]
[311546699,1705211462778,-500.0,0.00030136,2]
[311546700,1705211462787,-615.35874843,0.00030136,2]
[311546701,1705211462797,-500.0,0.00030136,2]
[311546702,1705211462806,-500.0,0.00030136,2]
[311546703,1705211462817,-386.5876862,0.00030136,2]
[311546704,1705211462827,-500.0,0.00030136,2]
[311546705,1705211462837,-500.0,0.00030136,2]
[311546706,1705211462847,-277.13342013,0.00030136,2]
[311546707,1705211462858,-426.7910742,0.00030136,2]
[311546708,1705211462867,-500.0,0.00030136,2]
[311546709,1705211462878,-588.97106745,0.00030136,2]
[311546710,1705211462887,-500.0,0.00030136,2]
[311546711,1705211462898,-528.03214016,0.00030136,2]
[311546712,1705211462908,-500.0,0.00030136,2]
[311546713,1705211462920,-500.0,0.00030136,2]
[311546714,1705211462930,-500.0,0.00030136,2]
[311546715,1705211462942,-500.0,0.00030136,2]
[311546716,1705211462953,-500.0,0.00030136,2]
[311546717,1705211462962,-500.0,0.00030136,2]
[311546718,1705211462973,-500.0,0.00030136,2]
[311546719,1705211462983,-500.0,0.00030136,2]
[311546720,1705211462992,-500.0,0.00030136,2]
[311546721,1705211463002,-500.0,0.00030136,2]
[311546722,1705211463011,-500.0,0.00030136,2]
[311546723,1705211463022,-500.0,0.00030136,2]
[311546724,1705211463032,-399.57935042,0.00030136,2]
[311546725,1705211463043,-500.0,0.00030136,2]
[311546726,1705211463053,-500.0,0.00030136,2]
[311546727,1705211463063,-557.02349739,0.00030136,2]
[311546728,1705211463074,-500.0,0.00030136,2]
[311546729,1705211463083,-500.0,0.00030136,2]
[311546730,1705211463092,-500.0,0.00030136,2]
[311546731,1705211463101,-500.0,0.00030136,2]
[311546732,1705211463111,-574.40594599,0.00030136,2]
[311546733,1705211463120,-500.0,0.00030136,2]
[311546734,1705211463130,-204.85608584,0.00030136,2]
[311546735,1705211463139,-313.00594022,0.00030136,2]
[311546736,1705211463148,-549.3420925,0.00030136,2]
[311546737,1705211463158,-623.74,0.00030136,2]
[311546738,1705211463173,-516.73782241,0.00030136,2]
[311546739,1705211463183,-500.0,0.00030136,2]
[311546740,1705211463193,-647.37674605,0.00030136,2]
[311546741,1705211463205,-500.0,0.00030136,2]
[311546742,1705211463215,-500.0,0.00030136,2]
[311546743,1705211463225,-500.0,0.00030136,2]
[311546744,1705211463234,-578.77010919,0.00030136,2]
[311546745,1705211463247,-346.35212732,0.00030136,2]
[311546746,1705211463258,-500.0,0.00030136,2]
[311546747,1705211463268,-530.46627499,0.00030136,2]
[311546748,1705211463277,-529.61145726,0.00030136,2]
[311546749,1705211463287,-608.83107941,0.00030136,2]
[311546750,1705211463297,-592.86394217,0.00030136,2]
[311546751,1705211463306,-500.0,0.00030136,2]
[311546752,1705211463316,-552.36510465,0.00030136,2]
[311546753,1705211463326,-500.0,0.00030136,2]
[311546754,1705211463336,-556.87304871,0.00030136,2]
[311546755,1705211463346,-1017.22,0.00030136,2]
[311546756,1705211463356,-1017.22,0.00030136,2]
[311546757,1705211463366,-500.0,0.00030136,2]
[311546758,1705211463376,-1017.22,0.00030136,2]
[311546759,1705211463386,-500.0,0.00030136,2]
[311546760,1705211463395,-1017.22,0.00030136,2]
[311546761,1705211463405,-411.8324705,0.00030136,2]
[311546762,1705211463416,-1017.22,0.00030136,2]
[311546763,1705211463425,-647.16904443,0.00030136,2]
[311546764,1705211463435,-553.70473432,0.00030136,2]
[311546765,1705211463446,-1017.22,0.00030136,2]